bitfinex/quotes_SOLUSD_20240625
["timestamp","ask_amount","ask_price","bid_price","bid_amount"]
[1719280495665,100.0,131.73,131.7,390.4]
[1719280495666,9.69,131.72,131.7,394.33968753]
[1719280495969,109.69,131.71,131.7,394.33968753]
[1719280496150,109.69,131.71,131.7,2.13086639]
[1719280496352,109.69,131.71,131.68,7.87937507]
[1719280496547,109.69,131.71,131.68,11.39971918]
[1719280496767,9.69,131.69,131.68,11.39971918]
[1719280496942,109.69,131.69,131.68,11.39971918]
[1719280497142,109.69,131.69,131.68,7.87937507]
[1719280497340,109.69,131.69,131.68,3.52034411]
[1719280497561,109.69,131.69,131.65,19.27909426]
[1719280497874,109.69,131.67,131.66,3.52034411]
[1719280498044,9.69,131.67,131.66,3.52034411]
[1719280498453,9.69,131.67,131.66,6.8357]
[1719280498652,9.69,131.68,131.66,10.35604411]
[1719280498863,9.69,131.68,131.66,6.8357]
[1719280499056,9.69,131.68,131.65,6.8361]
[1719280500364,100.0,131.7,131.66,6.8354]
[1719280500673,109.69,131.7,131.65,26.7802]
[1719280500855,109.69,131.7,131.67,6.835]
[1719280501054,109.69,131.7,131.66,6.8356]
[1719280501250,9.69,131.69,131.66,6.8356]
[1719280501767,9.69,131.69,131.65,23.9264]
[1719280501948,9.69,131.66,131.63,6.8369]
[1719280502872,100.0,131.68,131.64,6.8365]
[1719280503053,109.69,131.68,131.65,6.8362]
[1719280503751,109.69,131.68,131.63,16.5272]
[1719280503966,9.69,131.67,131.63,6.8369]
[1719280504174,9.69,131.67,131.63,23.9301]
[1719280504364,100.0,131.66,131.63,17.0929]
[1719280504567,100.0,131.66,131.63,23.9302]
[1719280506155,9.69,131.67,131.64,6.8366]
[1719280506367,9.69,131.67,131.63,23.9302]
[1719280506769,100.0,131.66,131.63,23.9302]
[1719280507273,109.69,131.66,131.63,23.9302]
[1719280508082,100.0,131.66,131.63,23.9302]
[1719280508263,9.69,131.66,131.63,23.9302]
[1719280508460,6.24021686,131.67,131.65,17.09]
[1719280508666,100.0,131.71,131.66,6.8357]
[1719280508978,9.69,131.69,131.66,6.8357]
[1719280509173,100.0,131.71,131.66,6.8357]
[1719280509380,9.69,131.67,131.64,6.8364]
[1719280509571,106.8343,131.69,131.64,6.8368]
[1719280509772,9.69,131.68,131.64,6.8368]
[1719280510081,9.69,131.67,131.63,6.8371]
[1719280510381,9.69,131.66,131.63,6.8372]
[1719280514778,6.8343,131.69,131.64,6.8367]
[1719280514779,100.0,131.69,131.64,6.8367]
[1719280514986,9.69,131.67,131.65,6.8362]
[1719280515370,9.69,131.68,131.65,6.8362]
[1719280515882,100.0,131.69,131.64,23.9283]
[1719280515883,9.69,131.67,131.64,23.9283]
[1719280516280,106.1403725,131.71,131.66,17.089]
[1719280516470,9.69,131.7,131.67,6.8349]
[1719280517479,9.69,131.7,131.66,23.9246]
[1719280517664,9.69,131.69,131.66,17.089]
[1719280518066,9.69,131.68,131.64,6.8367]
[1719280518273,109.69,131.67,131.63,23.9294]
[1719280518461,109.69,131.67,131.64,6.8367]
[1719280518663,109.69,131.67,131.63,23.9294]
[1719280519786,109.69,131.67,131.64,6.8367]
[1719280520884,100.0,131.69,131.64,6.8367]
[1719280521065,9.69,131.67,131.65,6.8363]
[1719280521264,9.69,131.67,131.64,6.8366]
[1719280521578,100.0,131.69,131.64,6.8366]
[1719280521790,9.69,131.67,131.64,6.8366]
[1719280522681,9.69,131.68,131.64,6.8366]
[1719280523987,9.69,131.67,131.64,6.8366]
[1719280524386,106.1403725,131.71,131.65,17.0905]
[1719280524576,9.69,131.7,131.65,17.0905]
[1719280524891,9.69,131.7,131.66,6.8357]
[1719280525088,9.69,131.69,131.66,6.8357]
[1719280525388,9.69,131.69,131.65,23.9266]
[1719280525784,100.0,131.71,131.65,17.0905]
[1719280525989,122.41646672,131.73,131.67,17.0877]
[1719280526290,9.69,131.7,131.67,23.9225]
[1719280526864,122.41646672,131.73,131.68,6.8345]
[1719280527282,9.69,131.71,131.68,6.8345]
[1719280527485,9.69,131.71,131.67,23.9228]
[1719280527668,109.69,131.71,131.67,23.9228]
[1719280527866,9.69,131.7,131.67,23.9228]
[1719280528589,13.87131141,131.73,131.69,17.085]
[1719280528885,5.97826672,131.73,131.72,6.8326]
[1719280529091,5.97826672,131.73,131.71,17.0823]
[1719280529092,7.88885689,131.75,131.73,6.8317]
[1719280529394,100.0,131.8,131.73,17.0793]
[1719280529570,100.0,131.8,131.75,6.8311]
[1719280529571,9.69,131.78,131.75,6.8311]
[1719280529772,6.09738305,131.8,131.75,23.9077]
[1719280529973,9.69,131.79,131.75,23.9077]
[1719280530179,100.0,131.8,131.75,33.5977]
[1719280530493,100.0,131.8,131.76,6.8305]
[1719280530690,9.69,131.79,131.76,6.8305]
[1719280530891,100.0,131.8,131.76,6.8305]
[1719280531293,9.69,131.79,131.76,6.8305]
[1719280531493,9.69,131.79,131.75,23.9077]
[1719280532596,100.0,131.8,131.75,23.9077]
[1719280534292,106.8285,131.8,131.74,6.8315]
[1719280534484,100.0,131.78,131.73,412.5974]
[1719280534679,100.0,131.78,131.73,419.4293]
[1719280534994,100.0,131.78,131.74,6.8314]
[1719280536596,100.0,131.78,131.75,6.831]
[1719280537290,100.0,131.8,131.75,6.831]
[1719280538398,100.0,131.8,131.76,6.8304]
[1719280538694,100.0,131.8,131.75,6.831]
[1719280539271,100.0,131.78,131.74,23.9096]
[1719280539494,100.0,131.78,131.74,17.0784]
[1719280540876,100.0,131.78,131.74,23.91]
[1719280541594,100.0,131.78,131.75,6.831]
[1719280542406,100.0,131.78,131.74,23.9099]
[1719280542708,100.0,131.78,131.75,6.831]
[1719280543990,100.0,131.8,131.76,6.8302]
[1719280544578,100.0,131.8,131.75,6.831]
[1719280544778,100.0,131.78,131.75,6.831]
[1719280545193,100.0,131.78,131.74,17.0784]
[1719280545579,100.0,131.78,131.74,23.9099]
[1719280546297,100.0,131.78,131.75,6.831]
[1719280546483,100.0,131.78,131.74,23.9099]
[1719280548095,100.0,131.78,131.75,6.831]
[1719280549298,106.23547541,131.78,131.75,6.831]
[1719280549796,6.23547541,131.78,131.75,6.831]
[1719280550002,100.0,131.8,131.75,6.831]
[1719280550304,106.8276,131.82,131.76,6.8304]
[1719280550486,100.0,131.82,131.74,390.4]
[1719280551000,106.08939831,131.82,131.74,390.4]
[1719280551378,6.08939831,131.82,131.74,390.4]
[1719280551592,100.0,131.84,131.78,17.0731]
[1719280551792,6.827,131.83,131.78,23.9025]
[1719280551978,100.0,131.82,131.74,390.4]
[1719280552174,100.0,131.8,131.75,17.0774]
[1719280552396,100.0,131.8,131.75,23.9081]
[1719280552595,109.69,131.8,131.75,23.9081]
[1719280552794,109.69,131.8,131.76,6.8305]
[1719280555005,109.69,131.8,131.75,407.4774]
[1719280555194,100.0,131.8,131.77,6.8299]
[1719280555395,9.69,131.81,131.78,6.8295]
[1719280555909,9.69,131.81,131.77,23.9045]
[1719280556113,100.0,131.82,131.77,23.9045]
[1719280556299,100.0,131.82,131.78,6.8294]
[1719280556603,9.69,131.81,131.78,6.8294]
[1719280557207,9.69,131.81,131.77,23.9044]
[1719280557692,9.69,131.79,131.77,17.0745]
[1719280558290,9.69,131.79,131.76,6.8305]
[1719280558493,9.69,131.79,131.75,383.2445]
[1719280559013,109.69,131.8,131.75,383.2445]
[1719280559198,109.69,131.8,131.75,392.9345]
[1719280559596,121.55695275,131.85,131.76,26.7661]
[1719280559597,100.0,131.82,131.76,26.7661]
[1719280559804,9.69,131.81,131.78,6.8294]
[1719280560201,9.69,131.81,131.77,6.8299]
[1719280561099,100.0,131.82,131.78,6.8293]
[1719280561300,9.69,131.81,131.78,6.8293]
[1719280561698,100.0,131.82,131.79,6.8289]
[1719280561898,6.8265,131.84,131.78,39.5918]
[1719280561899,100.0,131.84,131.78,39.5918]
[1719280562104,6.10695275,131.85,131.83,6.8269]
[1719280562305,100.0,131.86,131.83,6.8269]
[1719280562513,109.69,131.86,131.83,6.8269]
[1719280562705,115.83070648,131.86,131.83,6.8269]
[1719280563112,115.83070648,131.86,131.82,23.8956]
[1719280564018,106.14070648,131.86,131.83,6.8269]
[1719280564327,106.14070648,131.86,131.84,17.0652]
[1719280564518,106.14070648,131.86,131.85,6.8259]
[1719280564916,106.14070648,131.86,131.84,406.4463]
[1719280565294,6.14070648,131.86,131.85,6.8259]
[1719280565492,115.97536487,131.91,131.85,6.8259]
[1719280565493,9.69,131.89,131.85,6.8259]
[1719280566009,115.97536487,131.91,131.85,6.8259]
[1719280566334,115.13758783,131.91,131.84,416.1363]
[1719280566492,15.67552296,131.91,131.87,6.8247]
[1719280566692,9.69,131.91,131.87,6.8247]
[1719280567223,9.69,131.91,131.88,6.8242]
[1719280567395,115.7522,131.93,131.88,6.8242]
[1719280567708,9.69,131.92,131.88,6.8242]
[1719280568208,9.69,131.92,131.87,6.8247]
[1719280568517,9.69,131.91,131.87,6.8247]
[1719280569320,9.69,131.92,131.88,6.8243]
[1719280572223,100.0,131.93,131.88,6.8243]
[1719280572525,9.69,131.91,131.86,400.3069]
[1719280572823,9.69,131.9,131.87,6.8248]
[1719280573924,9.69,131.9,131.88,6.8241]
[1719280574427,9.69,131.91,131.88,6.8241]
[1719280575598,9.69,131.92,131.88,6.8241]
[1719280577826,9.69,131.91,131.88,15.792]
[1719280578005,9.69,131.9,131.88,15.792]
[1719280578498,9.69,131.9,131.87,6.8248]
[1719280579214,9.69,131.92,131.89,6.8237]
[1719280579423,9.69,131.92,131.88,23.8847]
[1719280579593,5.97730214,131.94,131.9,6.8228]
[1719280579798,9.69,131.94,131.9,6.8228]
[1719280580118,100.0,131.97,131.9,17.0579]
[1719280580119,106.8197,131.97,131.9,17.0579]
[1719280580422,100.0,131.97,131.92,6.8222]
[1719280580721,9.69,131.96,131.92,17.0554]
[1719280581120,9.69,131.95,131.92,17.0554]
[1719280582124,109.69,131.95,131.9,405.6261]
[1719280582324,9.69,131.92,131.9,390.0676]
[1719280583226,120.76569017,131.97,131.9,383.2445]
[1719280583524,9.69,131.94,131.9,383.2445]
[1719280584025,9.69,131.94,131.92,6.8222]
[1719280584427,113.94589017,131.97,131.95,6.8207]
[1719280584613,9.69,131.96,131.94,6.8207]
[1719280584801,6.1022963,131.97,131.93,17.0537]
[1719280585002,9.69,131.96,131.93,17.0537]
[1719280585414,9.69,131.96,131.93,23.8751]
[1719280586009,9.69,131.96,131.93,17.0537]
[1719280586215,9.69,131.96,131.93,23.8754]
[1719280587221,9.69,131.96,131.94,6.8212]
[1719280587420,9.69,131.96,131.93,23.8753]
[1719280587734,9.69,131.95,131.93,17.0537]
[1719280588431,9.69,131.95,131.93,23.8752]
[1719280589018,9.69,131.94,131.9,400.3024]
[1719280589331,9.69,131.94,131.91,6.8227]
[1719280589924,9.69,131.94,131.92,6.8222]
[1719280590122,100.0,131.95,131.92,6.8222]
[1719280590322,109.69,131.95,131.92,6.8222]
[1719280591019,109.69,131.95,131.9,409.9924]
[1719280591211,109.69,131.95,131.92,6.8221]
[1719280591835,109.69,131.95,131.9,416.8157]
[1719280592033,9.69,131.91,131.9,383.2445]
[1719280592341,9.69,131.91,131.89,6.8237]
[1719280593040,9.69,131.91,131.88,6.8242]
[1719280594035,100.0,131.93,131.87,399.7924]
[1719280594240,14.08549999,131.95,131.91,6.8227]
[1719280594419,15.90339198,131.95,131.92,6.8222]
[1719280594741,9.69,131.93,131.89,23.8825]
[1719280595819,9.69,131.93,131.9,6.8231]
[1719280596017,9.69,131.93,131.92,15.834635]
[1719280596236,9.69,131.93,131.92,13.55645664]
[1719280596428,9.69,131.93,131.92,11.27827828]
[1719280596628,106.8213,131.94,131.92,9.00004513]
[1719280596824,106.8213,131.94,131.92,6.72181198]
[1719280597031,106.8213,131.94,131.92,2.5]
[1719280597336,106.8213,131.94,131.92,0.29999998]
[1719280597640,100.0,131.92,131.89,17.0587]
[1719280597948,100.0,131.94,131.89,17.0587]
[1719280598119,6.21339198,131.95,131.92,17.0557]
[1719280598442,100.0,131.96,131.92,17.0557]
[1719280599138,100.0,131.94,131.89,23.8826]
[1719280599338,100.0,131.94,131.9,6.8233]
[1719280599634,100.0,131.94,131.89,17.0592]
[1719280599843,100.0,131.92,131.88,6.8239]
[1719280600545,100.0,131.92,131.89,6.8238]
[1719280602043,6.05071385,131.96,131.87,16.5479]
[1719280602351,7.47115865,132.0,131.87,16.5479]
[1719280602352,100.0,131.97,131.95,6.8207]
[1719280602516,100.0,131.97,131.89,34.1181]
[1719280602517,100.0,131.97,131.94,6.8212]
[1719280602943,100.0,131.97,131.93,23.8761]
[1719280603654,100.0,131.97,131.91,6.8224]
[1719280604137,100.0,131.97,131.92,6.8221]
[1719280604344,100.0,131.97,131.9,17.058]
[1719280604345,100.0,131.97,131.91,6.8227]
[1719280604717,100.0,131.97,131.92,6.822]
[1719280605649,100.0,131.97,131.92,17.0548]
[1719280606021,106.22011775,131.99,131.92,16.0082]
[1719280606226,6.22011775,131.99,131.97,6.8196]
[1719280606452,122.5751,132.03,131.96,23.8694]
[1719280606627,100.0,132.01,131.97,6.8194]
[1719280606822,100.0,132.01,131.96,400.2942]
[1719280606823,114.0541592,132.03,131.96,400.2942]
[1719280607021,106.156018,132.03,131.96,400.2942]
[1719280607327,106.156018,132.03,131.99,6.8186]
[1719280607548,6.156018,132.03,131.99,28.4534]
[1719280607730,100.0,132.04,131.99,28.4532]
[1719280607929,100.0,132.04,132.0,6.818]
[1719280608328,100.0,132.04,132.01,6.8176]
[1719280609047,100.0,132.04,132.0,6.818]
[1719280609754,6.18043695,132.05,132.0,6.818]
[1719280609944,107.89164793,132.06,132.01,6.8175]
[1719280611028,107.89164793,132.06,132.0,17.0446]
[1719280611029,113.94585535,132.06,132.0,17.0446]
[1719280611235,113.94585535,132.06,132.01,0.17]
[1719280611529,106.05420742,132.06,132.01,0.17]
[1719280611850,106.05420742,132.06,132.04,6.8158]
[1719280612150,106.05420742,132.06,132.02,17.042]
[1719280612151,106.05420742,132.06,132.03,6.8165]
[1719280612939,106.05420742,132.06,132.02,400.2865]
[1719280613154,106.05420742,132.06,132.02,407.1031]
[1719280613464,106.05420742,132.06,132.02,398.01051244]
[1719280613758,106.05420742,132.06,132.02,383.2445]
[1719280614960,106.05420742,132.06,132.02,400.2865]
[1719280615258,100.0,132.04,132.02,400.2865]
[1719280615646,100.0,132.04,132.02,407.1035]
[1719280615853,106.05420742,132.06,132.02,400.2865]
[1719280616153,100.0,132.06,132.02,400.2865]
[1719280616357,100.0,132.06,132.03,6.8164]
[1719280618868,100.0,132.06,132.02,400.2865]
[1719280619739,100.0,132.06,132.03,6.8162]
[1719280619941,100.0,132.06,132.02,400.2865]
[1719280621156,106.19404178,132.06,132.02,400.2865]
[1719280621349,100.0,132.04,132.02,383.2445]
[1719280621548,129.02,132.04,132.02,372.2815]
[1719280621854,106.8166,132.03,132.02,174.3789]
[1719280622032,100.0,131.98,131.93,17.0538]
[1719280622235,106.8193,131.98,131.93,23.8755]
[1719280622537,100.0,131.98,131.93,23.8755]
[1719280622752,100.0,131.98,131.94,6.8212]
[1719280623069,100.0,131.98,131.93,14.8538]
[1719280623361,100.0,131.98,131.93,14.0146]
[1719280624374,100.0,131.98,131.93,6.8213]
[1719280624544,100.0,131.98,131.9,21.3278]
[1719280625859,100.0,131.98,131.94,6.8211]
[1719280626576,106.03499124,131.98,131.93,23.8754]
[1719280626753,106.03499124,131.98,131.89,17.0586]
[1719280626754,100.0,131.96,131.89,17.0586]
[1719280626955,129.02,131.96,131.89,17.0586]
[1719280627278,100.0,131.94,131.89,17.0586]
[1719280629078,100.0,131.94,131.91,6.8227]
[1719280629261,100.0,131.94,131.89,17.0586]
[1719280629262,29.02,131.93,131.85,34.1294]
[1719280629978,29.02,131.93,131.85,40.3194]
[1719280630350,29.02,131.93,131.9,6.8232]
[1719280630548,29.02,131.93,131.89,17.0586]
[1719280630852,29.02,131.93,131.91,6.8227]
[1719280631042,100.0,131.94,131.91,6.8227]
[1719280631246,29.02,131.96,131.92,6.8221]
[1719280631247,129.02,131.96,131.92,6.8221]
[1719280631469,129.02,131.96,131.93,6.8216]
[1719280631642,29.02,131.96,131.94,6.8211]
[1719280631854,106.03499124,131.98,131.95,6.8207]
[1719280632052,106.03499124,131.98,131.96,6.8201]
[1719280632273,106.03499124,131.98,131.93,17.054]
[1719280632641,100.0,131.96,131.93,23.8757]
[1719280632846,100.0,131.96,131.94,6.8211]
[1719280633066,100.0,131.96,131.93,17.054]
[1719280633447,6.03499124,131.98,131.9,16.2266]
[1719280633668,100.0,131.99,131.92,6.3196]
[1719280634045,100.0,131.97,131.92,6.3196]
[1719280634247,100.0,131.97,131.93,17.0538]
[1719280634481,100.0,131.97,131.9,16.2266]
[1719280634482,100.0,131.93,131.9,23.8815]
[1719280634772,100.0,131.95,131.9,23.8815]
[1719280635377,100.0,131.93,131.9,23.8815]
[1719280635873,35.8409,131.95,131.9,23.8815]
[1719280635874,129.02,131.95,131.9,17.0582]
[1719280636345,129.02,131.95,131.91,6.8227]
[1719280636749,100.0,131.93,131.91,6.8227]
[1719280637165,100.0,131.93,131.9,17.0582]
[1719280638164,100.0,131.93,131.9,23.8813]
[1719280638561,100.0,131.93,131.91,6.8226]
[1719280639477,29.02,131.95,131.87,15.8516]
[1719280639478,100.0,131.91,131.88,6.8242]
[1719280640057,100.0,131.91,131.87,17.0619]
[1719280640058,100.0,131.91,131.87,23.8866]
[1719280640270,100.0,131.89,131.87,23.8866]
[1719280640470,100.0,131.89,131.85,6.3903]
[1719280640671,100.0,131.87,131.84,15.1112]
[1719280640853,100.0,131.87,131.82,390.4]
[1719280641571,100.0,131.87,131.84,23.8914]
[1719280642178,100.0,131.87,131.85,6.8258]
[1719280643170,0.47167175,131.93,131.82,390.4]
[1719280643171,100.0,131.85,131.82,390.4]
[1719280643486,100.0,131.85,131.82,397.2271]
[1719280643684,100.0,131.83,131.82,390.4]
[1719280644175,100.0,131.83,131.82,369.57944269]
[1719280644562,100.0,131.83,131.82,367.37944269]
[1719280644784,100.0,131.83,131.82,366.38344269]
[1719280645082,100.0,131.83,131.82,366.14144269]
[1719280645262,100.0,131.83,131.82,337.62144269]
[1719280645462,100.0,131.83,131.82,336.74944269]
[1719280645693,100.0,131.83,131.79,6.829]
[1719280646066,100.0,131.83,131.8,6.8284]
[1719280646462,100.0,131.83,131.81,6.8278]
[1719280647771,100.0,131.83,131.8,23.8992]
[1719280649762,100.0,131.83,131.81,6.8279]
[1719280650159,100.0,131.85,131.81,6.8279]
[1719280650884,106.00414889,131.85,131.81,6.8278]
[1719280652086,106.00414889,131.85,131.82,6.8274]
[1719280652286,100.0,131.87,131.82,17.0679]
[1719280652485,100.0,131.87,131.85,6.8258]
[1719280652681,100.0,131.87,131.79,34.1445]
[1719280652886,106.1788728,131.87,131.83,6.8265]
[1719280653389,106.1788728,131.87,131.83,23.8938]
[1719280653791,100.0,131.85,131.8,17.4105]
[1719280654199,100.0,131.85,131.81,6.8279]
[1719280654902,100.0,131.85,131.8,17.0705]
[1719280655501,100.0,131.85,131.81,6.8278]
[1719280656676,100.0,131.83,131.81,6.8278]
[1719280656881,100.0,131.83,131.8,17.0705]
[1719280657386,100.0,131.83,131.8,23.8989]
[1719280657978,100.0,131.83,131.81,6.8279]
[1719280658784,100.0,131.85,131.82,17.0683]
[1719280658983,109.7734,131.87,131.82,17.0683]
[1719280659178,100.0,131.85,131.82,17.0683]
[1719280659605,100.0,131.85,131.82,23.8955]
[1719280659984,100.0,131.85,131.83,6.8269]
[1719280660193,109.7734,131.87,131.83,6.8269]
[1719280660581,109.7734,131.87,131.84,6.8263]
[1719280660905,100.0,131.87,131.82,17.0683]
[1719280661079,100.0,131.87,131.84,6.826]
[1719280661481,100.0,131.87,131.85,6.8259]
[1719280661881,6.04461487,131.88,131.85,6.8259]
[1719280662077,21.73209312,131.91,131.82,15.1994]
[1719280662078,100.0,131.91,131.87,6.8246]
[1719280662282,106.21613909,131.91,131.87,6.8246]
[1719280663208,106.21613909,131.91,131.86,23.8881]
[1719280664005,113.03913909,131.91,131.86,23.8881]
[1719280664207,100.0,131.89,131.86,17.0629]
[1719280665506,6.8245,131.88,131.83,23.894]
[1719280665883,100.0,131.87,131.83,23.894]
[1719280666491,6.8239,131.89,131.83,23.894]
[1719280666492,100.0,131.89,131.84,6.8262]
[1719280666690,100.0,131.87,131.84,6.8262]
[1719280667713,100.0,131.87,131.85,6.8257]
[1719280668007,100.0,131.89,131.85,17.0643]
[1719280668216,6.21613909,131.91,131.87,17.0617]
[1719280668418,109.7734,131.93,131.84,0.17]
[1719280668587,100.0,131.94,131.86,6.4435]
[1719280668787,9.7734,131.96,131.88,15.2736]
[1719280668788,109.7734,131.96,131.88,15.2736]
[1719280669291,100.0,131.94,131.88,15.2736]
[1719280670801,100.0,131.94,131.89,6.8234]
[1719280672612,106.8213,131.94,131.89,6.8234]
[1719280673507,100.0,131.94,131.9,6.8232]
[1719280674208,100.0,131.94,131.89,6.8237]
[1719280675097,100.0,131.94,131.9,6.8232]
[1719280676914,100.0,131.94,131.89,6.8237]
[1719280677796,100.0,131.94,131.9,6.8233]
[1719280677994,100.0,131.94,131.91,6.8228]
[1719280678902,100.0,131.98,131.94,6.8208]
[1719280679097,100.0,131.98,131.93,23.8756]
[1719280679416,100.0,131.98,131.94,6.8212]
[1719280679892,100.0,131.98,131.93,23.8759]
[1719280680097,35.1131,132.0,131.93,23.8759]
[1719280680098,106.13665891,132.0,131.93,34.1086]
[1719280680306,106.13665891,132.0,131.97,17.0488]
[1719280680909,100.0,132.0,131.96,6.8201]
[1719280681118,100.0,132.0,131.96,23.87]
[1719280681803,106.8182,132.0,131.94,22.6532]
[1719280682009,114.69420688,132.0,131.94,22.6532]
[1719280682221,100.0,131.97,131.94,15.8324]
[1719280682516,100.0,131.97,131.93,17.0538]
[1719280683120,100.0,131.97,131.95,6.8207]
[1719280683290,100.0,131.99,131.95,6.8207]
[1719280683996,100.0,131.99,131.93,17.0538]
[1719280683997,100.0,131.99,131.96,6.8202]
[1719280684191,106.11772991,132.01,131.96,6.8202]
[1719280684511,106.11772991,132.01,131.97,6.8197]
[1719280684892,106.11772991,132.01,131.95,17.0514]
[1719280685118,106.11772991,132.01,131.97,6.8197]
[1719280685322,100.0,132.01,131.97,6.8197]
[1719280685612,100.0,131.99,131.96,6.8201]
[1719280685927,100.0,131.99,131.95,23.872]
[1719280686593,100.0,131.97,131.95,17.0514]
[1719280687403,100.0,131.97,131.95,23.872]
[1719280688016,100.0,131.97,131.96,6.8202]
[1719280688216,100.0,131.99,131.96,6.8202]
[1719280688512,107.87596458,132.01,131.96,6.8202]
[1719280689116,107.87596458,132.01,131.97,6.8196]
[1719280689287,100.0,131.99,131.96,6.8201]
[1719280690790,100.0,131.97,131.93,343.57104269]
[1719280690990,100.0,131.97,131.95,6.8206]
[1719280691195,100.0,131.98,131.95,6.8206]
[1719280692743,100.0,132.0,131.96,17.0502]
[1719280692893,106.24813443,132.02,131.99,6.8185]
[1719280693097,106.24813443,132.02,131.98,23.8666]
[1719280694319,100.0,132.02,131.98,23.8666]
[1719280694523,100.0,132.02,131.99,6.8185]
[1719280696803,100.0,132.02,131.98,23.8666]
[1719280697204,5.9715299,132.03,131.98,23.8666]
[1719280697205,106.8162,132.04,131.99,6.8186]
[1719280697608,100.0,132.02,131.98,23.8666]
[1719280698625,100.0,132.02,131.98,17.0476]
[1719280698820,100.0,132.0,131.95,17.0509]
[1719280699025,100.0,131.98,131.95,23.8716]
[1719280699228,100.0,131.98,131.95,17.0509]
[1719280700028,100.0,131.98,131.95,23.8715]
[1719280700327,116.56902211,132.04,132.03,6.8166]
[1719280700328,7.88862899,132.04,132.03,6.8166]
[1719280700626,100.0,132.13,132.07,17.036]
[1719280700824,100.0,132.13,132.08,6.8135]
[1719280701132,100.0,132.09,132.04,17.0397]
[1719280701308,100.0,132.11,132.04,17.0397]
[1719280701723,100.0,132.11,132.06,17.037]
[1719280702036,100.0,132.11,132.07,51.8144]
[1719280702546,100.0,132.09,132.07,45.0]
[1719280702726,100.0,132.09,132.05,6.8155]
[1719280702908,100.0,132.09,132.06,45.0]
[1719280703107,100.0,132.09,132.05,6.8155]
[1719280704128,100.0,132.11,132.06,6.8148]
[1719280704425,100.0,132.11,132.07,6.8143]
[1719280704730,106.8126,132.11,132.05,17.0383]
[1719280704917,100.0,132.09,132.06,45.0]
[1719280705116,100.0,132.09,132.05,23.8537]
[1719280714244,100.0,132.09,132.05,17.0383]
[1719280714545,100.0,132.09,132.04,6.8159]
[1719280714546,106.8136,132.09,132.04,6.8159]
[1719280714844,106.8136,132.09,132.05,45.0]
[1719280715222,100.0,132.09,132.05,51.8155]
[1719280715440,100.0,132.09,132.05,45.0]
[1719280716741,100.0,132.09,132.06,6.815]
[1719280718847,6.10069891,132.1,132.06,6.815]
[1719280719039,38.7934,132.11,132.07,45.0]
[1719280719750,45.6062,132.11,132.07,45.0]
[1719280719926,100.0,132.1,132.06,51.815]
[1719280722728,9.65,132.07,132.06,51.815]
[1719280723544,9.65,132.07,132.06,45.0]
[1719280723752,9.65,132.07,132.01,17.0432]
[1719280723753,100.0,132.06,132.01,17.0432]